bitfinex-derivatives/quotes_SOLF0:USTF0_20251002
["timestamp","ask_amount","ask_price","bid_price","bid_amount"]
[1759398236248,7.86,224.68,224.64,9.65984636]
[1759398236857,1.36888845,224.69,224.64,5.93]
[1759398237053,1.36888845,224.69,224.64,9.65984636]
[1759398237253,7.86,224.68,224.64,9.65984636]
[1759398237552,1.36888845,224.69,224.64,9.65984636]
[1759398237749,7.86,224.68,224.64,9.65984636]
[1759398237949,1.36888845,224.69,224.64,9.65984636]
[1759398238150,62.2618,224.74,224.62,3.72984636]
[1759398238151,1.36888845,224.66,224.62,3.72984636]
[1759398238353,7.86,224.65,224.6,3.72984636]
[1759398238553,1.36888845,224.66,224.6,3.72984636]
[1759398238948,9.22888845,224.66,224.6,3.72984636]
[1759398239653,1.36888845,224.66,224.61,4.0046]
[1759398239848,1.36888845,224.66,224.61,5.93]
[1759398240053,7.86,224.65,224.61,5.93]
[1759398240245,1.36888845,224.66,224.61,5.93]
[1759398240450,7.86,224.65,224.61,5.93]
[1759398240947,1.36888845,224.66,224.61,5.93]
[1759398241146,7.86,224.65,224.61,5.93]
[1759398241354,1.36888845,224.66,224.61,5.93]
[1759398241554,7.86,224.65,224.61,5.93]
[1759398241757,7.86,224.65,224.6,3.72984636]
[1759398241957,7.86,224.65,224.59,9.65984636]
[1759398242156,7.86,224.65,224.59,5.93]
[1759398243254,7.86,224.65,224.59,9.65984636]
[1759398244050,1.36888845,224.62,224.58,3.72984636]
[1759398244352,1.36888845,224.62,224.55,14.62394563]
[1759398244353,7.86,224.61,224.55,13.3522875]
[1759398244554,9.22888845,224.61,224.55,13.3522875]
[1759398245257,9.22888845,224.61,224.55,9.62244114]
[1759398247362,9.22888845,224.61,224.54,7.73574636]
[1759398247363,1.36888845,224.57,224.5,3.72984636]
[1759398247557,1.36888845,224.57,224.49,9.65984636]
[1759398247558,7.86,224.56,224.49,9.65984636]
[1759398247758,7.86,224.56,224.49,5.93]
[1759398248655,11.8658,224.56,224.49,5.93]
[1759398249160,7.86,224.56,224.49,5.93]
[1759398249558,7.86,224.56,224.5,4.0067]
[1759398250255,7.86,224.56,224.5,9.9367]
[1759398251663,7.86,224.56,224.52,9.9363]
[1759398252458,1.36888845,224.57,224.52,9.9363]
[1759398252656,7.86,224.56,224.52,9.9363]
[1759398253356,1.36888845,224.57,224.52,9.9363]
[1759398253557,7.86,224.56,224.52,9.9363]
[1759398253957,1.36888845,224.57,224.52,9.9363]
[1759398254158,7.86,224.56,224.52,9.9363]
[1759398254861,1.36888845,224.57,224.52,9.9363]
[1759398255059,7.86,224.56,224.52,9.9363]
[1759398255255,1.36888845,224.57,224.52,9.9363]
[1759398255451,7.86,224.56,224.52,9.9363]
[1759398255652,1.36888845,224.57,224.52,9.9363]
[1759398255963,7.86,224.56,224.52,9.9363]
[1759398256962,1.36888845,224.64,224.55,5.93]
[1759398257268,7.86,224.65,224.59,5.93]
[1759398258661,7.86,224.67,224.61,4.0046]
[1759398260571,7.86,224.76,224.63,5.93]
[1759398260764,1.36888845,224.72,224.63,5.93]
[1759398260963,7.86,224.71,224.64,4.0042]
[1759398264868,7.86,224.71,224.64,5.37308845]
[1759398272770,7.86,224.71,224.67,5.93]
[1759398272965,7.86,224.71,224.66,1.36888845]
[1759398273368,7.6,224.75,224.67,5.93]
[1759398273573,7.6,224.82,224.74,7.29888845]
[1759398274577,7.6,224.79,224.7,5.93]
[1759398274780,7.6,224.77,224.7,5.93]
[1759398277675,7.6,224.77,224.7,9.933]
[1759398278076,11.6019,224.77,224.7,9.933]
[1759398278278,8.96888845,224.76,224.7,5.93]
[1759398280282,7.6,224.76,224.7,5.93]
[1759398281077,7.6,224.82,224.75,1.36888845]
[1759398282581,7.6,224.82,224.75,5.37098845]
[1759398282777,7.6,224.82,224.74,5.93]
[1759398282778,7.6,224.82,224.77,1.36888845]
[1759398282978,7.6,224.82,224.78,5.93]
[1759398283284,7.6,224.82,224.78,9.9316]
[1759398283784,7.6,224.86,224.79,11.30028845]
[1759398284680,64.7,224.88,224.81,4.0011]
[1759398285087,58.46888845,224.88,224.78,1.36888845]
[1759398285275,7.6,224.87,224.78,1.36888845]
[1759398285480,7.6,224.87,224.79,5.93]
[1759398285979,7.6,224.87,224.8,5.37018845]
[1759398289579,7.6,224.87,224.8,4.0013]
[1759398289884,7.6,224.87,224.8,5.37018845]
[1759398290883,70.1741,225.04,224.86,5.93]
[1759398291083,7.6,224.94,224.86,5.93]
[1759398291688,11.599,224.94,224.86,5.93]
[1759398292889,7.6,224.94,224.86,5.93]
[1759398295996,11.599,224.94,224.86,5.93]
[1759398296996,3.9993,224.92,224.82,4.0009]
[1759398297294,7.56,224.91,224.82,9.9309]
[1759398297697,11.5595,224.91,224.82,9.9309]
[1759398298397,11.5595,224.91,224.82,5.93]
[1759398299490,11.5595,224.91,224.84,4.0005]
[1759398299794,7.56,224.93,224.82,5.93]
[1759398300491,3.9999,224.89,224.82,9.9309]
[1759398300698,7.56,224.93,224.83,5.93]
[1759398301893,7.56,224.95,224.83,5.93]
[1759398302592,3.9995,224.91,224.84,4.0005]
[1759398302798,7.56,224.92,224.83,5.93]
[1759398303299,11.5594,224.92,224.85,4.0004]
[1759398305399,7.56,224.92,224.86,4.0002]
[1759398305603,7.56,224.98,224.88,5.93]
[1759398306901,11.5582,224.98,224.9,3.9995]
[1759398307598,7.56,224.98,224.88,9.93]
[1759398307798,9.69439694,224.97,224.84,5.93]
[1759398309499,9.69439694,224.97,224.86,4.0002]
[1759398309704,7.56,224.97,224.86,4.0002]
[1759398311607,11.5592,224.93,224.86,4.0002]
[1759398312202,7.56,224.93,224.86,5.93]
[1759398312808,7.56,224.93,224.88,3.9998]
[1759398313417,7.56,224.93,224.89,5.93]
[1759398314018,3.9987,224.95,224.89,5.93]
[1759398314212,11.5587,224.95,224.89,5.93]
[1759398316219,3.999,224.94,224.89,5.93]
[1759398316514,7.56,224.93,224.89,5.93]
[1759398316712,11.5592,224.93,224.89,5.93]
[1759398316912,7.56,224.92,224.89,5.93]
[1759398320720,7.56,224.95,224.89,3.9996]
[1759398320918,67.10890297,225.09,224.9,2.13439694]
[1759398320919,7.56,225.02,224.9,2.13439694]
[1759398321120,7.56,225.02,224.91,5.93]
[1759398321316,62.1777,225.05,224.91,9.9294]
[1759398322323,7.56,225.03,224.91,9.9294]
[1759398322716,7.56,225.03,224.81,67.24240449]
[1759398322717,7.56,224.95,224.89,3.9997]
[1759398323024,7.56,224.95,224.87,8.05439694]
[1759398323521,7.56,224.95,224.88,5.92]
[1759398324623,11.5589,224.95,224.88,9.9199]
[1759398325225,7.71,225.01,224.87,5.92]
[1759398325518,7.71,225.01,224.9,5.92]
[1759398325919,2.13439694,225.04,224.9,5.92]
[1759398325920,11.7082,224.98,224.9,5.92]
[1759398326519,11.7082,224.98,224.91,3.9993]
[1759398326720,7.71,224.98,224.9,5.92]
[1759398327624,7.71,224.98,224.92,3.9991]
[1759398328021,7.71,224.98,224.92,9.9191]
[1759398328627,7.71,224.98,224.95,5.92]
[1759398328822,11.7077,225.01,224.95,5.92]
[1759398330727,7.71,225.01,224.95,5.92]
[1759398331626,7.71,225.01,224.95,9.9186]
[1759398331818,7.71,225.04,224.95,5.92]
[1759398332218,7.71,225.04,224.95,8.05439694]
[1759398332428,3.9974,225.03,224.95,5.92]
[1759398333231,3.9974,225.03,224.95,9.9186]
[1759398334024,7.71,225.04,224.96,5.92]
[1759398334329,7.71,225.04,224.92,13.3114108]
[1759398334330,3.9973,225.03,224.92,19.1756541]
[1759398334627,7.71,225.06,224.93,9.64984636]
[1759398334932,7.71,225.02,224.95,3.9986]
[1759398335129,7.71,225.02,224.95,9.9186]
[1759398335626,3.997,225.05,224.97,3.9983]
[1759398335829,7.71,225.04,224.97,3.9983]
[1759398336029,7.71,225.04,224.96,5.92]
[1759398337227,3.9969,225.06,224.96,5.92]
[1759398337428,7.71,225.05,224.96,5.92]
[1759398338133,7.71,225.05,224.98,5.92]
[1759398338533,7.71,225.09,224.99,5.92]
[1759398339234,11.7062,225.09,224.99,5.92]
[1759398339527,7.71,225.09,225.01,2.13439694]
[1759398339732,7.71,225.09,225.02,5.92]
[1759398342833,7.71,225.05,224.97,9.9182]
[1759398343330,7.71,225.1,224.99,5.92]
[1759398344438,7.71,225.1,224.96,5.92]
[1759398344927,7.71,225.07,224.95,30.67439694]
[1759398345130,7.71,225.07,224.99,5.92]
[1759398345435,7.71,225.07,225.0,3.9977]
[1759398345826,7.71,225.07,225.01,5.92]
[1759398346032,3.9959,225.11,225.02,3.9973]
[1759398346225,7.71,225.11,225.03,5.92]
[1759398346435,7.71,225.11,225.0,5.92]
[1759398346827,7.71,225.11,225.01,2.13439694]
[1759398347036,7.71,225.11,225.02,5.92]
[1759398348638,11.706,225.11,225.03,3.9973]
[1759398351044,7.71,225.11,225.02,5.92]
[1759398351439,3.9952,225.15,225.04,2.13439694]
[1759398351638,3.9952,225.15,225.05,5.92]
[1759398351639,7.71,225.14,225.05,5.92]
[1759398352232,11.7055,225.14,225.07,3.9964]
[1759398353141,11.7055,225.14,225.05,9.9169]
[1759398353645,3.9957,225.13,225.05,9.9169]
[1759398354744,7.46,225.13,225.05,5.92]
[1759398354946,7.46,225.13,225.03,3.9973]
[1759398356247,7.46,225.13,225.06,1.36353261]
[1759398356742,1.36353261,225.09,225.0,1.36353261]
[1759398357051,7.46,225.08,225.0,1.36353261]
[1759398357349,3.9969,225.06,225.0,1.36353261]
[1759398357849,11.4569,225.06,225.0,1.36353261]
[1759398360147,11.4569,225.06,224.99,3.9978]
[1759398360446,11.4569,225.06,225.0,1.36353261]
[1759398361045,7.46,225.06,225.01,5.92]
[1759398361250,7.46,225.06,225.02,1.36353261]
[1759398361446,7.46,225.07,225.01,5.92]
[1759398361647,7.46,225.07,225.01,7.28353261]
[1759398362654,11.4567,225.07,225.01,7.28353261]
[1759398362848,11.4567,225.07,225.01,11.28103261]
[1759398363049,7.46,225.07,225.01,11.28103261]
[1759398364556,7.46,225.07,225.03,5.92]
[1759398364956,11.4563,225.09,225.03,7.28353261]
[1759398366057,7.46,225.09,225.03,7.28353261]
[1759398367657,8.82353261,225.09,224.99,5.36133261]
[1759398367950,8.82353261,225.09,224.99,1.36353261]
[1759398368548,3.9967,225.07,225.0,3.9977]
[1759398368755,7.46,225.06,225.0,3.9977]
[1759398368958,7.46,225.05,224.98,5.92]
[1759398369364,7.46,225.05,224.96,1.36353261]
[1759398369558,7.46,225.02,224.96,1.36353261]
[1759398369963,11.4576,225.02,224.96,1.36353261]
[1759398370264,11.4576,225.02,224.95,10.88364714]
[1759398370265,7.46,225.02,224.95,10.88364714]
[1759398370861,3.9978,225.01,224.95,14.88224714]
[1759398371261,7.46,225.02,224.96,1.36353261]
[1759398372661,7.46,225.02,224.98,9.9181]
[1759398373563,1.36353261,225.06,224.98,5.92]
[1759398373859,3.9976,225.02,224.95,10.01798406]
[1759398374066,7.46,225.01,224.95,10.01798406]
[1759398374365,7.46,225.01,224.95,12.65305145]
[1759398375260,11.4576,225.02,224.96,7.68920431]
[1759398375566,11.4576,225.02,224.96,3.69080431]
[1759398375867,7.46,225.0,224.95,14.57445145]
[1759398376168,11.4578,225.01,224.95,14.57445145]
[1759398376869,7.46,225.01,224.95,14.57445145]
[1759398378560,7.46,225.01,224.96,3.9984]
[1759398378760,7.46,225.01,224.97,5.92]
[1759398380470,3.9973,225.03,224.97,5.92]
[1759398380668,7.46,225.02,224.97,5.92]
[1759398381766,3.9973,225.03,224.97,5.92]
[1759398382170,3.9973,225.03,224.97,9.9182]
[1759398382866,7.58,225.02,224.97,9.9182]
[1759398383066,11.5773,225.03,224.97,9.9182]
[1759398383868,7.58,225.03,224.97,5.92]
[1759398384070,7.45,225.07,225.0,7.28353261]
[1759398384972,7.45,225.07,225.01,3.9975]
[1759398387273,7.45,225.07,225.02,1.36353261]
[1759398387470,7.45,225.1,225.04,1.36353261]
[1759398388775,7.45,225.11,225.05,3.9968]
[1759398389474,7.45,225.11,225.05,9.9168]
[1759398389875,7.45,225.11,225.07,5.92]
[1759398390076,1.36353261,225.15,225.07,5.92]
[1759398390276,7.45,225.14,225.07,5.92]
[1759398391575,1.36353261,225.13,225.02,10.97433692]
[1759398391775,1.36353261,225.13,224.99,5.00150449]
[1759398391776,7.45,225.08,225.01,3.69080431]
[1759398391972,7.45,225.06,224.99,3.69080431]
[1759398392276,7.45,225.04,224.96,5.05433692]
[1759398393477,3.9974,225.03,224.96,5.05433692]
[1759398394673,3.9974,225.03,224.96,9.05273692]
[1759398395276,3.9974,225.03,224.96,5.05433692]
[1759398397080,3.9976,225.02,224.96,5.05433692]
[1759398398980,11.4478,225.01,224.96,5.05433692]
[1759398399181,11.4478,225.01,224.97,5.92]
[1759398401790,7.45,225.01,224.96,9.05273692]
[1759398402089,7.45,225.01,224.98,5.92]
[1759398404591,7.45,225.03,224.97,5.92]
[1759398405090,7.45,225.03,224.98,1.36353261]
[1759398405590,3.997,225.05,224.99,5.92]
[1759398407192,3.997,225.05,224.99,9.9179]
[1759398408586,3.997,225.05,224.99,5.92]
[1759398408788,7.45,225.06,224.99,5.92]
[1759398409596,3.9974,225.03,224.98,1.36353261]
[1759398409896,11.4474,225.03,224.99,5.92]
[1759398411496,3.9974,225.03,224.99,5.92]
[1759398411791,11.4474,225.03,224.99,5.92]
[1759398412091,3.9974,225.03,224.97,7.68910431]
[1759398412294,7.45,225.02,224.97,13.60910431]
[1759398412492,11.4474,225.03,224.97,9.9183]
[1759398414294,7.29,225.01,224.97,5.92]
[1759398414497,7.29,225.05,224.97,5.92]
[1759398414696,7.29,225.05,224.98,1.36353261]
[1759398414998,7.29,225.05,224.99,5.92]
[1759398415196,3.9972,225.04,224.99,3.9979]
[1759398415400,11.2872,225.04,225.0,5.92]
[1759398415595,7.29,225.04,225.0,7.28353261]
[1759398415801,7.29,225.08,225.02,1.36353261]
[1759398418201,7.29,225.08,225.01,9.9175]
[1759398420502,7.29,225.08,225.02,3.9973]
[1759398423010,64.29005754,225.11,225.01,3.70924774]
[1759398423210,64.29005754,225.11,224.99,3.70924774]
[1759398423211,7.29,225.1,224.99,3.70924774]
[1759398423408,7.29,225.1,225.0,3.70924774]
[1759398424004,7.29,225.08,225.01,3.9975]
[1759398424198,7.29,225.08,225.02,5.92]
[1759398425511,7.29,225.08,225.02,9.9173]
[1759398426312,11.2865,225.08,225.02,5.92]
[1759398426611,7.29,225.08,225.0,7.70704774]
[1759398427618,7.29,225.06,225.0,7.70704774]
[1759398429310,3.9963,225.09,225.01,3.9975]
[1759398429607,7.29,225.08,225.01,7.70674774]
[1759398434014,7.29,225.08,225.02,9.9173]
[1759398434515,7.29,225.11,225.05,5.92]
[1759398435514,11.286,225.11,225.05,5.92]
[1759398439011,7.29,225.11,225.05,5.92]
[1759398440018,7.29,225.11,225.07,9.9166]
[1759398440406,3.9956,225.13,225.07,9.9166]
[1759398440611,11.2856,225.13,225.07,9.9166]
[1759398450127,7.29,225.13,225.07,9.9166]
[1759398452433,7.29,225.13,225.08,3.9963]
[1759398452721,3.80297292,225.16,225.08,3.9963]
[1759398452722,7.62,225.15,225.08,3.9963]
[1759398453121,7.62,225.2,225.12,2.13125754]
[1759398453328,7.62,225.2,225.14,5.92]
[1759398453724,2.13125754,225.26,225.11,96.58924774]
[1759398454022,2.13125754,225.26,225.11,92.88]
[1759398454223,7.62,225.21,225.11,5.92]
[1759398455423,3.9946,225.19,225.11,5.92]
[1759398455619,7.62,225.21,225.11,2.13125754]
[1759398455823,7.62,225.21,225.12,5.92]
[1759398456021,11.6142,225.21,225.12,5.92]
[1759398457328,7.62,225.19,225.12,5.92]
[1759398463436,7.62,225.25,225.14,2.13125754]
[1759398463629,7.62,225.25,225.15,5.92]
[1759398464230,7.62,225.25,225.18,9.9145]
[1759398466337,7.62,225.25,225.19,5.92]
[1759398466932,7.62,225.25,225.19,9.9143]
[1759398467238,7.62,225.25,225.19,5.92]
[1759398468233,7.62,225.25,225.14,5.92]
[1759398468735,7.62,225.25,225.15,5.92]
[1759398469636,11.6135,225.25,225.16,3.9948]
[1759398472937,7.62,225.25,225.18,3.9946]
[1759398473136,7.62,225.33,225.19,5.92]
[1759398474537,3.9925,225.3,225.2,3.9941]
[1759398474737,7.18,225.29,225.2,3.9941]
[1759398475441,7.18,225.29,225.19,5.92]
[1759398476543,3.9934,225.25,225.19,5.92]
[1759398476844,11.1734,225.25,225.19,5.92]
[1759398478845,11.1734,225.25,225.16,3.9948]
[1759398479148,11.1734,225.25,225.16,9.9048]
[1759398480249,7.18,225.24,225.16,5.91]
[1759398481551,3.9939,225.23,225.16,5.91]
[1759398481851,7.18,225.24,225.16,9.9048]
[1759398482147,11.1737,225.24,225.16,5.91]
[1759398482351,7.18,225.24,225.16,5.91]
[1759398484249,7.18,225.24,225.17,1.36224205]
[1759398484454,7.18,225.24,225.18,5.91]
[1759398485553,7.18,225.24,225.18,9.9045]
[1759398487454,7.18,225.24,225.2,5.91]
[1759398488555,3.9929,225.28,225.2,5.91]
[1759398488757,11.1729,225.28,225.21,1.36224205]
[1759398491161,11.1729,225.28,225.2,9.9041]
[1759398491362,11.1729,225.28,225.2,11.26634205]
[1759398493161,11.1729,225.28,225.21,3.994]
[1759398493756,7.18,225.28,225.22,1.36224205]
[1759398493961,7.18,225.28,225.23,5.91]
[1759398494364,7.18,225.28,225.22,5.91]
[1759398494565,7.18,225.3,225.23,5.35584205]
[1759398495963,7.18,225.3,225.24,9.9034]
[1759398496464,1.36224205,225.34,225.24,9.9034]
[1759398496465,7.18,225.32,225.25,1.36224205]
[1759398496963,7.18,225.31,225.24,5.91]
[1759398497562,3.9926,225.3,225.24,5.91]
[1759398497964,7.18,225.29,225.25,7.27224205]
[1759398498153,1.36224205,225.36,225.26,5.91]
[1759398498360,7.18,225.35,225.26,5.91]
[1759398498560,7.18,225.35,225.27,1.36224205]
[1759398499658,3.9918,225.34,225.27,1.36224205]
[1759398500063,7.18,225.33,225.27,1.36224205]
[1759398501066,7.18,225.33,225.26,5.91]
[1759398501368,7.18,225.27,225.19,9.61924774]
[1759398501665,7.18,225.27,225.2,5.35634205]
[1759398501864,7.18,225.27,225.2,1.36224205]
[1759398502164,7.18,225.27,225.21,9.9039]
[1759398502363,7.18,225.27,225.21,5.91]
[1759398505471,11.1731,225.27,225.21,5.91]
[1759398506264,3.9927,225.29,225.22,1.36224205]
[1759398506670,7.79,225.28,225.24,7.27224205]
[1759398506965,3.9927,225.29,225.24,1.36224205]
[1759398507266,7.79,225.28,225.24,1.36224205]
[1759398507673,3.9927,225.29,225.24,1.36224205]
[1759398507872,7.79,225.28,225.21,11.26634205]
[1759398508067,7.79,225.28,225.21,5.91]
[1759398509673,3.9933,225.26,225.21,5.91]
[1759398509865,7.79,225.25,225.21,5.91]
[1759398510668,3.9933,225.26,225.21,5.91]
[1759398510865,7.79,225.25,225.21,5.91]
[1759398511374,3.9933,225.26,225.21,5.91]
[1759398511579,7.79,225.25,225.21,5.91]
[1759398511969,3.9933,225.26,225.21,5.91]
[1759398512377,7.79,225.24,225.21,5.91]
[1759398514176,7.79,225.24,225.2,5.91]
[1759398514377,7.79,225.24,225.19,5.35654205]
[1759398514574,7.79,225.24,225.2,5.91]
[1759398514978,7.79,225.24,225.19,5.35654205]
[1759398515480,7.79,225.24,225.2,5.91]
[1759398516776,7.79,225.24,225.19,5.35654205]
[1759398516980,7.79,225.24,225.21,5.91]
[1759398517182,7.79,225.25,225.21,5.91]
[1759398517478,11.7833,225.26,225.2,9.9041]
[1759398519883,11.7833,225.26,225.2,11.26634205]
[1759398520478,7.79,225.26,225.21,5.35624205]
[1759398520885,7.79,225.26,225.22,5.91]
[1759398521285,7.79,225.26,225.21,5.35624205]
[1759398521484,7.79,225.26,225.22,5.91]
[1759398522283,7.79,225.26,225.21,5.35624205]
[1759398522485,7.79,225.26,225.22,5.91]
[1759398522684,7.79,225.26,225.21,5.35624205]
[1759398522882,3.9925,225.3,225.24,7.27224205]
[1759398523288,3.9925,225.3,225.24,11.26574205]
[1759398523489,80.5,225.36,225.26,1.36224205]
[1759398523490,11.7822,225.32,225.26,1.36224205]
[1759398525385,11.7822,225.32,225.26,5.35534205]
[1759398525585,11.7822,225.32,225.25,5.91]
[1759398525790,7.79,225.3,225.22,9.60657876]
[1759398525989,7.79,225.3,225.23,1.36224205]
[1759398527686,3.9928,225.29,225.23,1.36224205]
[1759398528593,7.79,225.28,225.23,1.36224205]
[1759398528783,3.9928,225.29,225.23,1.36224205]
[1759398528990,3.9928,225.29,225.23,7.27224205]
[1759398529191,7.79,225.28,225.23,7.27224205]
[1759398529596,3.9928,225.29,225.23,7.27224205]
[1759398529889,3.9928,225.29,225.22,3.9939]
[1759398530094,7.79,225.28,225.21,5.05882081]
[1759398530293,7.79,225.28,225.21,1.36224205]
[1759398530795,11.7831,225.27,225.21,3.994]
[1759398531190,7.79,225.27,225.21,3.994]
[1759398532093,7.79,225.28,225.22,3.9938]
[1759398533098,7.79,225.28,225.23,3.9936]
[1759398533301,7.79,225.28,225.24,5.91]
[1759398533699,7.79,225.3,225.24,5.91]
[1759398534405,7.79,225.3,225.24,9.9034]
[1759398535105,7.79,225.3,225.25,3.9932]
[1759398535308,7.79,225.3,225.26,5.91]
[1759398535502,7.27,225.3,225.26,5.91]
[1759398535806,3.9924,225.31,225.26,5.91]
[1759398536116,7.27,225.3,225.26,5.91]
[1759398537201,3.9924,225.31,225.26,5.91]
[1759398537512,7.27,225.3,225.26,5.91]
[1759398538414,7.27,225.3,225.25,3.9932]
[1759398538600,7.27,225.3,225.26,5.91]
[1759398539107,7.27,225.3,225.25,7.68977876]
[1759398539309,7.27,225.3,225.27,5.91]
[1759398539610,7.27,225.34,225.26,7.27224205]
[1759398540107,7.27,225.34,225.28,3.9928]
[1759398540303,80.54,225.39,225.28,3.9928]
[1759398540304,7.27,225.38,225.28,5.91]
[1759398541606,11.2612,225.38,225.31,3.9922]
[1759398544112,3.9914,225.37,225.3,5.91]
[1759398544312,7.27,225.36,225.3,5.91]
[1759398544708,11.2616,225.36,225.3,5.91]
[1759398545513,7.27,225.36,225.3,9.9025]
[1759398551817,2.12638278,225.36,225.23,9.60716281]
[1759398552019,2.12638278,225.36,225.24,108.18]
[1759398552524,7.27,225.35,225.24,108.18]
[1759398552821,7.27,225.32,225.25,3.9933]
[1759398556719,11.2623,225.32,225.25,3.9933]
[1759398557323,11.2623,225.32,225.24,108.18]
[1759398557518,11.2623,225.32,225.26,3.9931]
[1759398558120,64.24058278,225.28,225.21,3.48802005]
[1759398558321,2.12638278,225.24,225.14,17.05346761]
[1759398558529,3.9943,225.2,225.12,5.91]
[1759398558727,7.27,225.19,225.12,19.30148053]
[1759398558929,7.27,225.19,225.12,5.91]
[1759398559221,2.12638278,225.21,225.07,12.03298278]
[1759398559422,7.27,225.2,225.07,9.9066]
[1759398559828,2.12638278,225.21,225.07,9.9066]
[1759398560123,7.27,225.2,225.07,9.9066]
[1759398560628,3.9946,225.19,225.07,9.9066]
[1759398561023,7.27,225.18,225.07,9.9066]
[1759398562222,7.42,225.18,225.07,9.9066]
[1759398562721,7.42,225.18,225.09,3.9962]
[1759398565426,7.52,225.2,225.07,3.9966]
[1759398565629,2.12638278,225.21,225.06,29.78]
[1759398566021,7.52,225.15,225.06,29.78]
[1759398566319,7.52,225.2,225.06,35.69]
[1759398566519,2.12638278,225.21,225.06,35.69]
[1759398566827,7.52,225.17,225.01,5.91]
[1759398567021,7.52,225.17,225.01,8.03638278]
[1759398567829,7.52,225.17,225.02,5.91]
[1759398568427,11.515,225.17,225.05,3.9968]
[1759398568627,11.515,225.17,225.05,5.91]
[1759398569726,11.515,225.17,225.07,3.9966]
[1759398573933,7.52,225.17,225.09,9.9061]
[1759398577837,7.52,225.17,225.1,3.9959]
[1759398578038,7.52,225.17,225.11,5.91]
[1759398578334,7.52,225.17,225.12,3.9956]
[1759398578534,7.52,225.17,225.13,5.91]
[1759398578736,7.52,225.19,225.12,3.9956]
[1759398578935,7.52,225.19,225.1,6.12238278]
[1759398580642,7.52,225.19,225.11,3.9957]
[1759398583941,7.52,225.19,225.09,5.91]
[1759398584348,7.52,225.14,225.03,5.91]
[1759398585546,7.52,225.14,225.06,3.9967]
[1759398588851,7.52,225.14,225.07,3.9965]
[1759398590449,11.5155,225.14,225.07,3.9965]
[1759398593254,62.1435,225.17,225.03,5.91]
[1759398593547,11.76894382,225.16,225.03,5.91]
[1759398593746,7.52,225.14,225.03,5.91]
[1759398593950,10.65870912,225.14,225.03,5.91]
[1759398594146,1.1102347,225.16,225.03,5.91]
[1759398594147,7.17,225.12,225.03,5.91]
[1759398594549,3.996,225.11,225.03,9.9072]
[1759398594757,7.17,225.1,225.03,9.9072]
[1759398595150,7.17,225.1,225.04,3.997]
[1759398596457,10.3120189,225.1,225.04,3.997]
[1759398598356,3.1420189,225.09,225.03,5.91]
[1759398599357,3.1420189,225.08,225.0,2.12638278]
[1759398599553,3.1420189,225.09,225.03,3.9972]
[1759398599755,10.3120189,225.08,225.03,3.9972]
[1759398600055,7.17,225.08,225.04,5.92]
[1759398600255,3.14856746,225.07,225.04,7.28379752]
[1759398600560,7.17,225.08,225.04,7.28379752]
[1759398600760,10.32088291,225.07,225.04,7.28379752]